[Event "Titled Tuesday Blitz November 07 Early 2023"]
[White "Yushko, Olga"]
[Black "Ardila, Oscar Humberto"]
[WhiteFideId "14114500"]
[BlackFideId "4404742"]
[WhiteElo "2078"]
[BlackElo "2308"]
[Result "0-1"]
[Round "4"]
[TimeControl "180+1"]
[Date "2023.11.07"]
[WhiteClock "0:00:17"]
[BlackClock "0:00:17"]
[Board "231"]

1. d4 {[%clk 0:02:59]}  Nf6 {[%clk 0:02:59]} 2. c4 {[%clk 0:03:00]}  e6 {[%clk 0:03:00]} 3. Nc3 {[%clk 0:02:59]}  Bb4 {[%clk 0:03:00]} 4. Qc2 {[%clk 0:02:59]}  d5 {[%clk 0:02:59]} 5. cxd5 {[%clk 0:02:59]}  exd5 {[%clk 0:02:56]} 6. Nf3 {[%clk 0:02:57]}  O-O {[%clk 0:02:55]} 7. Bg5 {[%clk 0:02:57]}  c6 {[%clk 0:02:54]} 8. e3 {[%clk 0:02:58]}  h6 {[%clk 0:02:54]} 9. Bh4 {[%clk 0:02:58]}  Bg4 {[%clk 0:02:52]} 10. Ne5 {[%clk 0:02:54]}  Be6 {[%clk 0:02:51]} 11. Bd3 {[%clk 0:02:53]}  Nbd7 {[%clk 0:02:51]} 12. O-O {[%clk 0:02:49]}  Qa5 {[%clk 0:02:50]} 13. Nxd7 {[%clk 0:02:47]}  Nxd7 {[%clk 0:02:50]} 14. a3 {[%clk 0:02:42]}  Bd6 {[%clk 0:02:49]} 15. b4 {[%clk 0:02:39]}  Qc7 {[%clk 0:02:49]} 16. Bg3 {[%clk 0:02:39]}  Bxg3 {[%clk 0:02:48]} 17. hxg3 {[%clk 0:02:38]}  Qd6 {[%clk 0:02:45]} 18. Na4 {[%clk 0:02:28]}  b6 {[%clk 0:02:39]} 19. Rfc1 {[%clk 0:02:22]}  Rac8 {[%clk 0:02:38]} 20. Qe2 {[%clk 0:02:11]}  c5 {[%clk 0:02:28]} 21. bxc5 {[%clk 0:01:56]}  bxc5 {[%clk 0:02:29]} 22. dxc5 {[%clk 0:01:55]}  Nxc5 {[%clk 0:02:29]} 23. Nxc5 {[%clk 0:01:53]}  Rxc5 {[%clk 0:02:28]} 24. Rxc5 {[%clk 0:01:26]}  Qxc5 {[%clk 0:02:28]} 25. Qb2 {[%clk 0:01:25]}  Rc8 {[%clk 0:02:25]} 26. Rd1 {[%clk 0:01:20]}  Qc3 {[%clk 0:02:15]} 27. Qxc3 {[%clk 0:00:53]}  Rxc3 {[%clk 0:02:14]} 28. a4 {[%clk 0:00:53]}  Ra3 {[%clk 0:02:09]} 29. Bb5 {[%clk 0:00:52]}  Kf8 {[%clk 0:01:59]} 30. Rc1 {[%clk 0:00:49]}  a6 {[%clk 0:02:00]} 31. Bxa6 {[%clk 0:00:40]}  Rxa4 {[%clk 0:01:54]} 32. Bb7 {[%clk 0:00:31]}  Ke7 {[%clk 0:01:51]} 33. Rd1 {[%clk 0:00:26]}  Kd6 {[%clk 0:01:46]} 34. Rc1 {[%clk 0:00:24]}  Rb4 {[%clk 0:01:43]} 35. Bc8 {[%clk 0:00:24]}  Rb2 {[%clk 0:01:40]} 36. Bxe6 {[%clk 0:00:23]}  fxe6 {[%clk 0:01:40]} 37. Kf1 {[%clk 0:00:23]}  Ke5 {[%clk 0:01:32]} 38. Rc7 {[%clk 0:00:21]}  g6 {[%clk 0:01:28]} 39. Rh7 {[%clk 0:00:21]}  h5 {[%clk 0:01:28]} 40. Rg7 {[%clk 0:00:21]}  Kf6 {[%clk 0:01:24]} 41. Rg8 {[%clk 0:00:21]}  Rc2 {[%clk 0:01:20]} 42. Ke1 {[%clk 0:00:21]}  Ra2 {[%clk 0:01:18]} 43. Rf8+ {[%clk 0:00:21]}  Ke7 {[%clk 0:01:17]} 44. Rg8 {[%clk 0:00:21]}  Kf7 {[%clk 0:01:17]} 45. Rc8 {[%clk 0:00:22]}  Ra4 {[%clk 0:01:00]} 46. Ke2 {[%clk 0:00:22]}  Rb4 {[%clk 0:00:55]} 47. Rc7+ {[%clk 0:00:22]}  Kf6 {[%clk 0:00:55]} 48. Rc8 {[%clk 0:00:22]}  Rb7 {[%clk 0:00:42]} 49. Rf8+ {[%clk 0:00:23]}  Kg7 {[%clk 0:00:40]} 50. Re8 {[%clk 0:00:23]}  Kf7 {[%clk 0:00:40]} 51. Rc8 {[%clk 0:00:23]}  Re7 {[%clk 0:00:39]} 52. Kf3 {[%clk 0:00:24]}  Kg7 {[%clk 0:00:36]} 53. Kf4 {[%clk 0:00:24]}  Rf7+ {[%clk 0:00:29]} 54. Kg5 {[%clk 0:00:23]}  Rf5+ {[%clk 0:00:29]} 55. Kh4 {[%clk 0:00:23]}  Rxf2 {[%clk 0:00:29]} 56. Kh3 {[%clk 0:00:23]}  Re2 {[%clk 0:00:28]} 57. Rc7+ {[%clk 0:00:22]}  Kf6 {[%clk 0:00:28]} 58. Rc8 {[%clk 0:00:22]}  Rxe3 {[%clk 0:00:27]} 59. Rf8+ {[%clk 0:00:22]}  Ke7 {[%clk 0:00:27]} 60. Kh4 {[%clk 0:00:22]}  d4 {[%clk 0:00:26]} 61. Rf2 {[%clk 0:00:22]}  d3 {[%clk 0:00:25]} 62. Rd2 {[%clk 0:00:22]}  e5 {[%clk 0:00:24]} 63. Kg5 {[%clk 0:00:22]}  Rxg3+ {[%clk 0:00:23]} 64. Kh6 {[%clk 0:00:23]}  e4 {[%clk 0:00:23]} 65. Rd1 {[%clk 0:00:22]}  Rxg2 {[%clk 0:00:21]} 66. Kg7 {[%clk 0:00:22]}  h4 {[%clk 0:00:19]} 67. Rh1 {[%clk 0:00:21]}  d2 {[%clk 0:00:18]} 68. Kh6 {[%clk 0:00:17]}  e3 {[%clk 0:00:17]} 0-1


[Site "https://www.chess.com"]

[Event "Titled Tuesday Blitz November 07 Early 2023"]
[White "Barbot, Pierre"]
[Black "Djordjevic, Dejan N"]
[WhiteFideId "663727"]
[BlackFideId "913316"]
[WhiteElo "2304"]
[BlackElo "2060"]
[Result "1-0"]
[Round "4"]
[TimeControl "180+1"]
[Date "2023.11.07"]
[WhiteClock "0:00:04"]
[BlackClock "0:00:00"]
[Board "232"]

1. e4 {[%clk 0:03:00]}  c5 {[%clk 0:02:59]} 2. Nc3 {[%clk 0:02:59]}  Nc6 {[%clk 0:02:59]} 3. Bb5 {[%clk 0:02:58]}  g6 {[%clk 0:02:59]} 4. Bxc6 {[%clk 0:02:58]}  dxc6 {[%clk 0:02:59]} 5. d3 {[%clk 0:02:57]}  Bg7 {[%clk 0:02:59]} 6. f4 {[%clk 0:02:52]}  Nf6 {[%clk 0:02:57]} 7. Nf3 {[%clk 0:02:50]}  b6 {[%clk 0:02:56]} 8. O-O {[%clk 0:02:47]}  O-O {[%clk 0:02:56]} 9. h3 {[%clk 0:02:46]}  Qc7 {[%clk 0:02:49]} 10. Be3 {[%clk 0:02:44]}  Rd8 {[%clk 0:02:48]} 11. Qe2 {[%clk 0:02:35]}  a5 {[%clk 0:02:44]} 12. Rae1 {[%clk 0:02:27]}  Nh5 {[%clk 0:02:43]} 13. Qd2 {[%clk 0:01:48]}  Bh6 {[%clk 0:02:04]} 14. Ne5 {[%clk 0:01:33]}  Bg7 {[%clk 0:01:55]} 15. Nf3 {[%clk 0:01:06]}  a4 {[%clk 0:01:28]} 16. g4 {[%clk 0:01:02]}  Nf6 {[%clk 0:01:26]} 17. Ne2 {[%clk 0:00:53]}  Nxe4 {[%clk 0:01:25]} 18. Qc1 {[%clk 0:00:50]}  Nf6 {[%clk 0:01:22]} 19. Ng3 {[%clk 0:00:48]}  Be6 {[%clk 0:01:07]} 20. a3 {[%clk 0:00:45]}  Nd5 {[%clk 0:01:04]} 21. Bd2 {[%clk 0:00:38]}  b5 {[%clk 0:01:01]} 22. Ng5 {[%clk 0:00:33]}  Bc8 {[%clk 0:01:00]} 23. N3e4 {[%clk 0:00:23]}  c4 {[%clk 0:00:49]} 24. dxc4 {[%clk 0:00:22]}  bxc4 {[%clk 0:00:49]} 25. f5 {[%clk 0:00:13]}  h6 {[%clk 0:00:33]} 26. Nxf7 {[%clk 0:00:13]}  Kxf7 {[%clk 0:00:32]} 27. Bxh6 {[%clk 0:00:13]}  Rh8 {[%clk 0:00:24]} 28. fxg6+ {[%clk 0:00:12]}  Kg8 {[%clk 0:00:22]} 29. Bxg7 {[%clk 0:00:12]}  Kxg7 {[%clk 0:00:20]} 30. Kg2 {[%clk 0:00:13]}  Be6 {[%clk 0:00:06]} 31. Ng5 {[%clk 0:00:12]}  Bg8 {[%clk 0:00:06]} 32. Rf3 {[%clk 0:00:06]}  Rf8 {[%clk 0:00:03]} 33. Ref1 {[%clk 0:00:06]}  Rxf3 {[%clk 0:00:02]} 34. Rxf3 {[%clk 0:00:06]}  Qe5 {[%clk 0:00:02]} 35. Nf7 {[%clk 0:00:05]}  Rh6 {[%clk 0:00:02]} 36. Nxe5 {[%clk 0:00:04]}  c3 {[%clk 0:00:01]} 37. bxc3 {[%clk 0:00:04]}  Nxc3 {[%clk 0:00:01]} 38. Qf1 {[%clk 0:00:04]}  Bd5 {[%clk 0:00:00]} 39. g5 {[%clk 0:00:04]} 1-0


[Site "https://www.chess.com"]

[Event "Titled Tuesday Blitz November 07 Early 2023"]
[White "abelmat"]
[Black "Davidson, Kevin"]
[BlackFideId "2056810"]
[WhiteElo "1975"]
[BlackElo "2303"]
[Result "0-1"]
[Round "4"]
[TimeControl "180+1"]
[Date "2023.11.07"]
[WhiteClock "0:00:00"]
[BlackClock "0:00:35"]
[Board "233"]

1. d4 {[%clk 0:02:57]}  Nf6 {[%clk 0:02:59]} 2. c4 {[%clk 0:02:58]}  g6 {[%clk 0:02:59]} 3. Nc3 {[%clk 0:02:57]}  Bg7 {[%clk 0:03:00]} 4. e4 {[%clk 0:02:58]}  d6 {[%clk 0:03:01]} 5. f3 {[%clk 0:02:58]}  O-O {[%clk 0:03:01]} 6. Be3 {[%clk 0:02:59]}  Nc6 {[%clk 0:03:01]} 7. Nge2 {[%clk 0:03:00]}  a6 {[%clk 0:03:01]} 8. Qd2 {[%clk 0:02:59]}  Rb8 {[%clk 0:03:01]} 9. O-O-O {[%clk 0:02:57]}  b5 {[%clk 0:03:00]} 10. g4 {[%clk 0:02:52]}  bxc4 {[%clk 0:02:52]} 11. Bh6 {[%clk 0:02:49]}  Nb4 {[%clk 0:02:44]} 12. Ng3 {[%clk 0:02:29]}  c5 {[%clk 0:02:30]} 13. Bxg7 {[%clk 0:02:27]}  Kxg7 {[%clk 0:02:31]} 14. h4 {[%clk 0:02:22]}  cxd4 {[%clk 0:02:09]} 15. Qxd4 {[%clk 0:02:12]}  Qb6 {[%clk 0:02:08]} 16. Qd2 {[%clk 0:02:04]}  Be6 {[%clk 0:02:00]} 17. h5 {[%clk 0:01:57]}  Rfc8 {[%clk 0:01:13]} 18. a3 {[%clk 0:01:43]}  Nd3+ {[%clk 0:01:11]} 19. Bxd3 {[%clk 0:01:36]}  cxd3 {[%clk 0:01:12]} 20. hxg6 {[%clk 0:01:34]}  fxg6 {[%clk 0:01:10]} 21. g5 {[%clk 0:01:08]}  Nd7 {[%clk 0:01:04]} 22. Rh6 {[%clk 0:00:52]}  Ne5 {[%clk 0:00:47]} 23. Rdh1 {[%clk 0:00:45]}  Bg8 {[%clk 0:00:47]} 24. f4 {[%clk 0:00:19]}  Nc4 {[%clk 0:00:46]} 25. Qh2 {[%clk 0:00:14]}  Qxb2+ {[%clk 0:00:37]} 26. Qxb2 {[%clk 0:00:12]}  Rxb2 {[%clk 0:00:37]} 27. f5 {[%clk 0:00:08]}  Rc2+ {[%clk 0:00:35]} 28. Kd1 {[%clk 0:00:07]}  Rxc3 {[%clk 0:00:35]} 29. f6+ {[%clk 0:00:07]}  exf6 {[%clk 0:00:35]} 30. gxf6+ {[%clk 0:00:07]}  Kxf6 {[%clk 0:00:35]} 31. Rf1+ {[%clk 0:00:06]}  Kg7 {[%clk 0:00:35]} 32. Rh3 {[%clk 0:00:04]}  Ne3+ {[%clk 0:00:35]} 33. Kd2 {[%clk 0:00:04]}  Nxf1+ {[%clk 0:00:35]} 34. Ke1 {[%clk 0:00:04]}  Nxg3 {[%clk 0:00:35]} 35. Rxg3 {[%clk 0:00:00]}  d2+ {[%clk 0:00:35]} 0-1


[Site "https://www.chess.com"]

[Event "Titled Tuesday Blitz November 07 Early 2023"]
[White "Gyulamiryan-koryun"]
[Black "Rasmussen, Casper"]
[BlackFideId "1402005"]
[WhiteElo "1890"]
[BlackElo "2293"]
[Result "0-1"]
[Round "4"]
[TimeControl "180+1"]
[Date "2023.11.07"]
[WhiteClock "0:00:00"]
[BlackClock "0:00:08"]
[Board "234"]

1. e4 {[%clk 0:02:54]}  c5 {[%clk 0:02:59]} 2. Nf3 {[%clk 0:02:52]}  e6 {[%clk 0:02:59]} 3. c4 {[%clk 0:02:51]}  a6 {[%clk 0:02:55]} 4. Nc3 {[%clk 0:02:50]}  Nc6 {[%clk 0:02:53]} 5. Be2 {[%clk 0:02:47]}  g6 {[%clk 0:02:51]} 6. O-O {[%clk 0:02:46]}  Bg7 {[%clk 0:02:52]} 7. d3 {[%clk 0:02:46]}  Nge7 {[%clk 0:02:52]} 8. a3 {[%clk 0:02:41]}  O-O {[%clk 0:02:52]} 9. Bg5 {[%clk 0:02:35]}  h6 {[%clk 0:02:51]} 10. Bh4 {[%clk 0:02:35]}  d6 {[%clk 0:02:49]} 11. d4 {[%clk 0:02:29]}  cxd4 {[%clk 0:02:28]} 12. Na4 {[%clk 0:02:17]}  e5 {[%clk 0:02:16]} 13. b4 {[%clk 0:02:12]}  Be6 {[%clk 0:02:12]} 14. c5 {[%clk 0:01:39]}  g5 {[%clk 0:01:49]} 15. Bg3 {[%clk 0:01:37]}  f6 {[%clk 0:01:43]} 16. Nb6 {[%clk 0:01:27]}  Ra7 {[%clk 0:01:25]} 17. Bc4 {[%clk 0:01:21]}  d5 {[%clk 0:01:10]} 18. Bd3 {[%clk 0:01:12]}  Nc8 {[%clk 0:00:53]} 19. Nxc8 {[%clk 0:01:06]}  Qxc8 {[%clk 0:00:50]} 20. Rc1 {[%clk 0:01:03]}  Qd7 {[%clk 0:00:42]} 21. Qb3 {[%clk 0:00:47]}  Rd8 {[%clk 0:00:38]} 22. Rc2 {[%clk 0:00:38]}  Kh8 {[%clk 0:00:31]} 23. Qb2 {[%clk 0:00:32]}  Raa8 {[%clk 0:00:28]} 24. Rb1 {[%clk 0:00:31]}  Rac8 {[%clk 0:00:28]} 25. Nd2 {[%clk 0:00:28]}  Ne7 {[%clk 0:00:27]} 26. f3 {[%clk 0:00:24]}  Ng8 {[%clk 0:00:20]} 27. b5 {[%clk 0:00:21]}  axb5 {[%clk 0:00:17]} 28. Qxb5 {[%clk 0:00:21]}  Qxb5 {[%clk 0:00:16]} 29. Rxb5 {[%clk 0:00:21]}  Rc7 {[%clk 0:00:15]} 30. Rcb2 {[%clk 0:00:20]}  Bf8 {[%clk 0:00:12]} 31. exd5 {[%clk 0:00:18]}  Bxd5 {[%clk 0:00:11]} 32. Ne4 {[%clk 0:00:18]}  Bxe4 {[%clk 0:00:09]} 33. Bxe4 {[%clk 0:00:17]}  Bxc5 {[%clk 0:00:10]} 34. Rxb7 {[%clk 0:00:17]}  d3+ {[%clk 0:00:10]} 35. Kf1 {[%clk 0:00:16]}  Rxb7 {[%clk 0:00:10]} 36. Rxb7 {[%clk 0:00:15]}  d2 {[%clk 0:00:11]} 37. Bc2 {[%clk 0:00:13]}  Ne7 {[%clk 0:00:11]} 38. Ke2 {[%clk 0:00:12]}  Nc6 {[%clk 0:00:10]} 39. Kd1 {[%clk 0:00:12]}  Nd4 {[%clk 0:00:10]} 40. Bd3 {[%clk 0:00:12]}  Bxa3 {[%clk 0:00:10]} 41. Ra7 {[%clk 0:00:10]}  Bb4 {[%clk 0:00:10]} 42. Ra4 {[%clk 0:00:08]}  Bc3 {[%clk 0:00:08]} 43. f4 {[%clk 0:00:06]}  exf4 {[%clk 0:00:07]} 44. Bf2 {[%clk 0:00:06]}  Ne6 {[%clk 0:00:08]} 45. Bb6 {[%clk 0:00:05]}  Rc8 {[%clk 0:00:07]} 46. Bc2 {[%clk 0:00:04]}  Be5 {[%clk 0:00:08]} 47. Ra7 {[%clk 0:00:03]}  Nd4 {[%clk 0:00:08]} 48. Bxd4 {[%clk 0:00:00]}  Bxd4 {[%clk 0:00:08]} 0-1


[Site "https://www.chess.com"]

[Event "Titled Tuesday Blitz November 07 Early 2023"]
[White "Firouzja, Alireza"]
[Black "Bauman_Guy"]
[WhiteFideId "12573981"]
[WhiteElo "3080"]
[BlackElo "2920"]
[Result "1/2-1/2"]
[Round "5"]
[TimeControl "180+1"]
[Date "2023.11.07"]
[WhiteClock "0:00:07"]
[BlackClock "0:00:07"]
[Board "3"]

1. a3 {[%clk 0:02:57]}  g6 {[%clk 0:02:58]} 2. c3 {[%clk 0:02:56]}  Bg7 {[%clk 0:02:56]} 3. e4 {[%clk 0:02:56]}  d5 {[%clk 0:02:53]} 4. exd5 {[%clk 0:02:55]}  Qxd5 {[%clk 0:02:53]} 5. Nf3 {[%clk 0:02:56]}  c5 {[%clk 0:02:52]} 6. Be2 {[%clk 0:02:55]}  Nc6 {[%clk 0:02:52]} 7. O-O {[%clk 0:02:56]}  Nf6 {[%clk 0:02:52]} 8. d3 {[%clk 0:02:56]}  b6 {[%clk 0:02:52]} 9. h3 {[%clk 0:02:56]}  Bb7 {[%clk 0:02:52]} 10. a4 {[%clk 0:02:56]}  O-O {[%clk 0:02:52]} 11. Na3 {[%clk 0:02:56]}  Rfd8 {[%clk 0:02:48]} 12. Re1 {[%clk 0:02:56]}  Ne5 {[%clk 0:02:41]} 13. Nb5 {[%clk 0:02:24]}  Nxf3+ {[%clk 0:02:02]} 14. Bxf3 {[%clk 0:02:25]}  Qd7 {[%clk 0:02:03]} 15. Bf4 {[%clk 0:02:04]}  Nd5 {[%clk 0:01:55]} 16. Bg3 {[%clk 0:02:00]}  e6 {[%clk 0:01:43]} 17. Nd6 {[%clk 0:01:53]}  Bc6 {[%clk 0:01:42]} 18. a5 {[%clk 0:01:53]}  Ne7 {[%clk 0:01:32]} 19. Bg4 {[%clk 0:01:38]}  Nf5 {[%clk 0:01:25]} 20. Bxf5 {[%clk 0:01:38]}  exf5 {[%clk 0:01:25]} 21. axb6 {[%clk 0:01:33]}  axb6 {[%clk 0:01:26]} 22. Rxa8 {[%clk 0:01:32]}  Bxa8 {[%clk 0:01:16]} 23. Qb3 {[%clk 0:01:33]}  Bf8 {[%clk 0:00:49]} 24. Qxb6 {[%clk 0:01:19]}  Qc6 {[%clk 0:00:49]} 25. Qxc6 {[%clk 0:01:11]}  Bxc6 {[%clk 0:00:50]} 26. Nc4 {[%clk 0:01:10]}  Bb5 {[%clk 0:00:50]} 27. Ra1 {[%clk 0:00:53]}  Rxd3 {[%clk 0:00:46]} 28. Ne5 {[%clk 0:00:53]}  Rd8 {[%clk 0:00:43]} 29. Ra7 {[%clk 0:00:54]}  f6 {[%clk 0:00:39]} 30. Nf3 {[%clk 0:00:48]}  Bc6 {[%clk 0:00:38]} 31. Ra6 {[%clk 0:00:42]}  Rd1+ {[%clk 0:00:35]} 32. Kh2 {[%clk 0:00:42]}  Bxf3 {[%clk 0:00:31]} 33. gxf3 {[%clk 0:00:43]}  Kf7 {[%clk 0:00:32]} 34. Ra7+ {[%clk 0:00:39]}  Be7 {[%clk 0:00:30]} 35. Bf4 {[%clk 0:00:24]}  Ke6 {[%clk 0:00:29]} 36. Be3 {[%clk 0:00:22]}  Rb1 {[%clk 0:00:24]} 37. Ra6+ {[%clk 0:00:21]}  Kf7 {[%clk 0:00:24]} 38. Rb6 {[%clk 0:00:21]}  c4 {[%clk 0:00:22]} 39. f4 {[%clk 0:00:19]}  Bd8 {[%clk 0:00:19]} 40. Rb7+ {[%clk 0:00:18]}  Ke6 {[%clk 0:00:19]} 41. Kg2 {[%clk 0:00:18]}  h5 {[%clk 0:00:19]} 42. Bd4 {[%clk 0:00:17]}  g5 {[%clk 0:00:17]} 43. Rb4 {[%clk 0:00:10]}  g4 {[%clk 0:00:14]} 44. h4 {[%clk 0:00:10]}  Bc7 {[%clk 0:00:12]} 45. Be3 {[%clk 0:00:09]}  Bd6 {[%clk 0:00:11]} 46. Rb6 {[%clk 0:00:07]}  Kd5 {[%clk 0:00:11]} 47. Rb5+ {[%clk 0:00:06]}  Ke6 {[%clk 0:00:11]} 48. Rb7 {[%clk 0:00:06]}  Kd5 {[%clk 0:00:09]} 49. Rf7 {[%clk 0:00:03]}  Ke6 {[%clk 0:00:09]} 50. Rh7 {[%clk 0:00:03]}  Rxb2 {[%clk 0:00:09]} 51. Rxh5 {[%clk 0:00:04]}  Rc2 {[%clk 0:00:09]} 52. Rh8 {[%clk 0:00:01]}  Kf7 {[%clk 0:00:08]} 53. h5 {[%clk 0:00:02]}  Rxc3 {[%clk 0:00:08]} 54. Rc8 {[%clk 0:00:02]}  Rd3 {[%clk 0:00:03]} 55. Rxc4 {[%clk 0:00:02]}  Kg7 {[%clk 0:00:03]} 56. Ra4 {[%clk 0:00:02]}  Kh6 {[%clk 0:00:03]} 57. Ra5 {[%clk 0:00:02]}  Kxh5 {[%clk 0:00:02]} 58. Rxf5+ {[%clk 0:00:03]}  Kg6 {[%clk 0:00:03]} 59. Rb5 {[%clk 0:00:03]}  f5 {[%clk 0:00:04]} 60. Ra5 {[%clk 0:00:04]}  Kf6 {[%clk 0:00:03]} 61. Ra7 {[%clk 0:00:04]}  Ke6 {[%clk 0:00:03]} 62. Rh7 {[%clk 0:00:04]}  Rd5 {[%clk 0:00:03]} 63. Rh6+ {[%clk 0:00:04]}  Kf7 {[%clk 0:00:04]} 64. Rh7+ {[%clk 0:00:04]}  Kg6 {[%clk 0:00:04]} 65. Rd7 {[%clk 0:00:04]}  Kf6 {[%clk 0:00:02]} 66. Ra7 {[%clk 0:00:04]}  Ke6 {[%clk 0:00:03]} 67. Kg3 {[%clk 0:00:04]}  Bc5 {[%clk 0:00:03]} 68. Ra6+ {[%clk 0:00:04]}  Kd7 {[%clk 0:00:03]} 69. Ra5 {[%clk 0:00:04]}  Kd6 {[%clk 0:00:03]} 70. Ra6+ {[%clk 0:00:02]}  Ke7 {[%clk 0:00:03]} 71. Kh4 {[%clk 0:00:02]}  Bxe3 {[%clk 0:00:02]} 72. fxe3 {[%clk 0:00:03]}  Rd3 {[%clk 0:00:03]} 73. Kg5 {[%clk 0:00:03]}  Rxe3 {[%clk 0:00:03]} 74. Kxf5 {[%clk 0:00:04]}  g3 {[%clk 0:00:04]} 75. Ra7+ {[%clk 0:00:04]}  Kf8 {[%clk 0:00:03]} 76. Kf6 {[%clk 0:00:02]}  Ke8 {[%clk 0:00:02]} 77. Rg7 {[%clk 0:00:02]}  Ra3 {[%clk 0:00:01]} 78. Rg8+ {[%clk 0:00:03]}  Kd7 {[%clk 0:00:01]} 79. f5 {[%clk 0:00:03]}  Ra6+ {[%clk 0:00:02]} 80. Kf7 {[%clk 0:00:03]}  Kd6 {[%clk 0:00:03]} 81. Rg6+ {[%clk 0:00:01]}  Ke5 {[%clk 0:00:03]} 82. Rxa6 {[%clk 0:00:01]}  Kxf5 {[%clk 0:00:04]} 83. Ra5+ {[%clk 0:00:01]}  Kf4 {[%clk 0:00:05]} 84. Ra4+ {[%clk 0:00:02]}  Kf3 {[%clk 0:00:05]} 85. Ra3+ {[%clk 0:00:03]}  Kf2 {[%clk 0:00:05]} 86. Ra2+ {[%clk 0:00:03]}  Kf1 {[%clk 0:00:06]} 87. Kf6 {[%clk 0:00:04]}  g2 {[%clk 0:00:06]} 88. Kf5 {[%clk 0:00:05]}  g1=Q {[%clk 0:00:05]} 89. Ra1+ {[%clk 0:00:06]}  Kg2 {[%clk 0:00:06]} 90. Rxg1+ {[%clk 0:00:07]}  Kxg1 {[%clk 0:00:07]} 1/2-1/2


[Site "https://www.chess.com"]

[Event "Titled Tuesday Blitz November 07 Early 2023"]
[White "Duda, Jan-Krzysztof"]
[Black "Sethuraman, S.P."]
[WhiteFideId "1170546"]
[BlackFideId "5021596"]
[WhiteElo "3079"]
[BlackElo "2905"]
[Result "1-0"]
[Round "5"]
[TimeControl "180+1"]
[Date "2023.11.07"]
[WhiteClock "0:00:15"]
[BlackClock "0:00:01"]
[Board "4"]

1. d4 {[%clk 0:03:00]}  d5 {[%clk 0:02:59]} 2. c4 {[%clk 0:02:59]}  e6 {[%clk 0:02:59]} 3. Nf3 {[%clk 0:02:58]}  Nf6 {[%clk 0:02:59]} 4. g3 {[%clk 0:02:58]}  Bb4+ {[%clk 0:02:57]} 5. Bd2 {[%clk 0:02:58]}  Be7 {[%clk 0:02:57]} 6. Bg2 {[%clk 0:02:58]}  O-O {[%clk 0:02:57]} 7. O-O {[%clk 0:02:57]}  Nbd7 {[%clk 0:02:57]} 8. Qc2 {[%clk 0:02:53]}  c6 {[%clk 0:02:57]} 9. Rd1 {[%clk 0:02:53]}  a5 {[%clk 0:02:57]} 10. Bf4 {[%clk 0:02:50]}  a4 {[%clk 0:02:54]} 11. a3 {[%clk 0:02:48]}  Qa5 {[%clk 0:02:47]} 12. h3 {[%clk 0:02:24]}  Qa6 {[%clk 0:02:38]} 13. Nbd2 {[%clk 0:02:09]}  Nh5 {[%clk 0:02:36]} 14. Bc7 {[%clk 0:02:04]}  f5 {[%clk 0:01:58]} 15. Ne5 {[%clk 0:02:02]}  Nhf6 {[%clk 0:01:43]} 16. Nd3 {[%clk 0:01:59]}  Ne4 {[%clk 0:01:42]} 17. Rac1 {[%clk 0:01:56]}  Ndf6 {[%clk 0:01:20]} 18. Be5 {[%clk 0:01:42]}  Nd7 {[%clk 0:01:19]} 19. Bf4 {[%clk 0:01:39]}  Nxd2 {[%clk 0:01:01]} 20. Bxd2 {[%clk 0:01:17]}  Nb6 {[%clk 0:00:44]} 21. cxd5 {[%clk 0:01:11]}  exd5 {[%clk 0:00:40]} 22. Bb4 {[%clk 0:01:10]}  Bxb4 {[%clk 0:00:33]} 23. Nxb4 {[%clk 0:01:11]}  Qa7 {[%clk 0:00:28]} 24. e3 {[%clk 0:01:10]}  Qb8 {[%clk 0:00:26]} 25. Qc5 {[%clk 0:01:06]}  Nd7 {[%clk 0:00:26]} 26. Qe7 {[%clk 0:01:03]}  Nf6 {[%clk 0:00:23]} 27. Qe5 {[%clk 0:00:54]}  Qxe5 {[%clk 0:00:20]} 28. dxe5 {[%clk 0:00:55]}  Ne4 {[%clk 0:00:18]} 29. h4 {[%clk 0:00:48]}  Re8 {[%clk 0:00:17]} 30. Nd3 {[%clk 0:00:47]}  Ra5 {[%clk 0:00:17]} 31. Kh2 {[%clk 0:00:46]}  c5 {[%clk 0:00:09]} 32. f3 {[%clk 0:00:36]}  c4 {[%clk 0:00:09]} 33. fxe4 {[%clk 0:00:36]}  cxd3 {[%clk 0:00:09]} 34. exd5 {[%clk 0:00:37]}  Bd7 {[%clk 0:00:08]} 35. e6 {[%clk 0:00:30]}  Bb5 {[%clk 0:00:08]} 36. Rc7 {[%clk 0:00:29]}  Ra6 {[%clk 0:00:07]} 37. Rxb7 {[%clk 0:00:27]}  Bc4 {[%clk 0:00:07]} 38. Rc7 {[%clk 0:00:26]}  Bb5 {[%clk 0:00:06]} 39. Rb7 {[%clk 0:00:18]}  Bc4 {[%clk 0:00:06]} 40. Rb4 {[%clk 0:00:18]}  Bb3 {[%clk 0:00:06]} 41. Rxd3 {[%clk 0:00:18]}  Rd6 {[%clk 0:00:06]} 42. Rbd4 {[%clk 0:00:14]}  Rc8 {[%clk 0:00:06]} 43. Rc3 {[%clk 0:00:15]}  Rdd8 {[%clk 0:00:05]} 44. e7 {[%clk 0:00:14]}  Re8 {[%clk 0:00:03]} 45. Rxc8 {[%clk 0:00:14]}  Rxc8 {[%clk 0:00:01]} 46. d6 {[%clk 0:00:15]} 1-0


[Site "https://www.chess.com"]